[Event "2nd Doppelbauer Kiel GM 2022"]
[Site "Kiel"]
[Date "2022.07.02"]
[Round "5.5"]
[White "Farokhi, Keyvan"]
[Black "Meshkovs, Nikita"]
[Result "0-1"]
[ECO "B33"]
[WhiteElo "2360"]
[BlackElo "2553"]
[Annotator "TA"]
[PlyCount "104"]
[EventDate "2022.06.30"]
[EventType "tourn"]
[EventCountry "GER"]
[SourceTitle "playchess.com"]
[Source "ChessBase"]
[SourceQuality "1"]
[TimeControl "40/5400+30:1800+30"]

{[%evp 23,104,60,51,0,13,2,14,25,48,23,41,50,55,-10,59,52,82,22,137,108,106,38,18,-57,-34,-142,-123,-137,-112,-125,-132,-159,-173,-143,-107,-116,-112,-1563,662,661,5493,-160,-175,-168,-122,-192,-212,-209,-219,-213,-205,-206,-189,-5418,-6091,-3595,-304,-304,-304,-304,-304,-304,-304,-304,-304,-304,-304,-304,-304,-29973,-29974,-29972,-29975,-29981,-29982,-29982,-29983,-29983,-29984,-29984,-29985,-29985,-29985]} 1. e4 {[%emt 0:00:03]} c5 {[%emt 0:00:05]} 2. Nf3 {[%emt 0:00:07]} Nc6 {[%emt 0:00:05]} 3. d4 {[%emt 0:00:06]} cxd4 {[%emt 0:00:05]} 4. Nxd4 {[%emt 0:00:07]} Nf6 {[%emt 0:00:05]} 5. Nc3 {[%emt 0:00:08]} e5 {[%emt 0:00:05]} 6. Ndb5 {[%emt 0:00:11]} d6 {[%emt 0:00:06]} 7. Bg5 {[%emt 0:00:06]} a6 {[%emt 0:00:04]} 8. Na3 {[%emt 0:00:06]} b5 {[%emt 0:00:05]} 9. Bxf6 {[%emt 0:00:07]} gxf6 {[%emt 0:00:05][%cal Bg7f6,Bf6f5][%mdl 32]} 10. Nd5 {[%emt 0:00:08]} f5 {[%emt 0:00:04]} 11. Bd3 {[%emt 0:00:49]} Be6 {[%emt 0:00:15]} 12. c3 {[%emt 0:01:28]} Bg7 {[%emt 0:00:16]} 13. Nxb5 {[%emt 0:00:49] B33: Sicilian: Pelikan and Sveshnikov Variations.} axb5 {[%emt 0:00:36]} 14. Bxb5 {[%emt 0:00:06]} Bd7 {[%emt 0:00:05]} (14... Rc8 $5 {[%cal Re8g8]}) 15. exf5 {[%emt 0:00:07] The position is equal.} O-O {[%emt 0:01:52]} 16. O-O {[%emt 0:00:33][%mdl 1024] White has compensation.} (16. a4 $5 {[%cal Re1g1]}) 16... e4 {[%emt 0:05:28]} 17. a4 {[%emt 0:09:23]} Re8 {[%emt 0:03:05] [#]} 18. Ne3 $146 {[%emt 0:03:23]} (18. Qg4 $14 Rc8 19. Rad1) ({Predecessor:} 18. Qg4 Kh8 19. Qf4 Be5 20. Qh6 Rc8 21. f6 Rg8 22. Rae1 Rg6 23. Qh4 Rg4 24. Qh5 Bxf6 25. Qxf7 Be5 26. f4 exf3 27. Rxf3 Rg7 28. Qh5 Bg4 {0-1 (28) Tari,A (2593)-Zhigalko,S (2641) Katowice 2017}) 18... Bf8 {[%emt 0:35:07]} (18... Ne5 $11) 19. Qh5 {[%emt 0:12:34]} Ne5 {[%emt 0:02:57][%cal Od6d5]} 20. Nd5 $1 {[%emt 0:01:09]} Bg7 {[%emt 0:06:03]} (20... Bxb5 $11 {remains equal.} 21. axb5 Rb8) 21. f6 $1 $16 {[%emt 0:10:42] And now Qg5 would win.} Bf8 {[%emt 0:05:47]} 22. Bxd7 {[%emt 0:03:52]} (22. c4 $16) 22... Nxd7 $14 {[%emt 0:00:37]} 23. Qg5+ {[%emt 0:01:55]} ({White should play} 23. Ne7+ $11 Kh8 24. Qxf7 Nxf6 25. Qxf6+ Bg7 26. Ng6+ $1 hxg6 27. Qxg6) 23... Kh8 $15 {[%emt 0:00:07]} 24. Ne7 {[%emt 0:00:09] [#]} ({White should try} 24. Rfd1 $15) 24... Nxf6 $1 $17 {[%emt 0:03:55][%mdl 512]} 25. Qxf6+ {[%emt 0:02:02]} Bg7 {[%emt 0:00:13]} 26. Qxf7 {[%emt 0:00:13]} Rxe7 {[%emt 0:00:31]} 27. Qc4 {[%emt 0:04:51]} d5 {[%emt 0:08:44]} 28. Qe2 {[%emt 0:09:03]} Rea7 {[%emt 0:04:35] Black is more active.} 29. Rfd1 {[%emt 0:06:36]} Rxa4 {[%emt 0:00:41]} 30. Ra2 {[%emt 0:34:37][%mdl 8192]} Ra3 $4 {[%mdl 8192]} (30... Rxa2 $19 31. Qd2 Rb8) 31. Rxa3 $18 {[%emt 0:00:00]} Ra4 32. b3 $2 Rxa3 $17 {[%emt 0:06:38]} 33. Qxe4 {[%emt 0:00:00] [#]} Bxc3 {[%emt 0:02:47]} (33... Ra1 $3 $19 {[%mdl 512]} 34. Qf3 Rxd1+ 35. Qxd1 Bxc3) 34. g4 {[%emt 0:00:00]} (34. Qf5 $17) 34... Ra1 {[%emt 0:01:30]} (34... Rxb3 35. Rxd5 Qc8 36. Qd3 $17) 35. Qd3 {[%emt 0:00:00]} Rxd1+ {[%emt 0:00:58]} 36. Qxd1 {[%emt 0:00:00]} d4 {[%emt 0:00:27][%cal Bd5d4,Bd4d3][%mdl 32] aiming for ...d3.} 37. Qd3 {[%emt 0:00:00]} Qd5 {[%emt 0:01:23]} 38. Qc4 $2 {[%emt 0:00:00]} (38. h4) 38... Qxc4 $19 {[%emt 0:09:23]} 39. bxc4 {[%emt 0:00:00][%mdl 4096] Endgame KB-KP} d3 {[%emt 0:00:01]} 40. Kf1 {[%emt 0:00:00]} Bd2 {[%emt 0:01:59]} 41. c5 {[%emt 0:20:13]} Kg7 {[%emt 0:30:35]} 42. c6 {[%emt 0:00:17] Threatens to win with c7.} Bf4 {[%emt 0:00:01]} 43. Ke1 {[%emt 0:00:10][%cal Oc6c7]} Kf6 {[%emt 0:00:02]} ({Weaker is} 43... Bxh2 44. Kd2 $11) 44. c7 {[%emt 0:00:10]} Bxc7 {[%emt 0:00:02] ( -> ...Bf4). KB-K3P} 45. Kd2 {[%emt 0:00:06] [#]} Kg5 $1 {[%emt 0:00:00]} 46. h3 {[%emt 0:00:00]} (46. f3 $19) 46... Kh4 {[%emt 0:00:00] Black mates.} 47. Kxd3 {[%emt 0:00:00]} Kxh3 {[%emt 0:00:00] KB-KPP} 48. f3 {[%emt 0:00:00]} Bf4 {[%emt 0:00:00]} 49. Ke2 {[%emt 0:00:00]} Kg2 {[%emt 0:00:00]} 50. Ke1 {[%emt 0:00:00]} Kxf3 {[%emt 0:00:00]} 51. Kf1 {[%emt 0:00:00]} Be3 {[%emt 0:00:00]} 52. g5 {[%emt 0:00:00]} Kg3 {[%emt 0:00:00] Black used his chance.  Weighted Error Value: White=0.71/Black=0.25 (precise)} 0-1

[Event "2nd Doppelbauer Kiel GM 2022"]
[Site "Kiel"]
[Date "2022.07.03"]
[Round "6.1"]
[White "Parvanyan, Ashot"]
[Black "Meshkovs, Nikita"]
[Result "1/2-1/2"]
[ECO "E04"]
[WhiteElo "2455"]
[BlackElo "2553"]
[Annotator "TA"]
[PlyCount "65"]
[EventDate "2022.06.30"]
[EventType "tourn"]
[EventCountry "GER"]
[SourceTitle "playchess.com"]
[Source "ChessBase"]
[SourceQuality "1"]
[TimeControl "40/5400+30:1800+30"]

{[%evp 11,65,17,18,18,13,23,16,19,59,63,57,47,79,-79,-104,-127,-115,-120,-97,-97,-94,-142,-144,-112,-125,-116,-93,-128,60,68,360,365,360,368,346,355,355,364,441,441,441,429,514,495,444,24,268,0,0,0,0,0,0,0,0,0]} 1. Nf3 {[%emt 0:02:39]} d5 {[%emt 0:01:18]} 2. d4 {[%emt 0:01:19]} Nf6 {[%emt 0:00:29]} 3. c4 {[%emt 0:00:05]} e6 {[%emt 0:00:03]} 4. g3 {[%emt 0:00:03]} dxc4 {[%emt 0:00:22]} 5. Bg2 {[%emt 0:00:08]} Bb4+ {[%emt 0:00:06]} 6. Bd2 {[%emt 0:00:24]} a5 {[%emt 0:00:06]} 7. Qc2 {[%emt 0:02:33] E04: Open Catalan: 5 Nf3.} Bxd2+ {[%emt 0:01:32]} (7... Nc6 {keeps more tension.} 8. Qxc4 Qd5 9. Qd3 Qf5) 8. Qxd2 {[%emt 0:01:52]} c6 {[%emt 0:00:09]} 9. a4 {[%emt 0:00:23]} b5 {[%emt 0:00:08]} 10. axb5 {[%emt 0:00:56]} cxb5 {[%emt 0:00:02]} 11. Qg5 {[%emt 0:00:10][%csl LRb5,LRg7] [#]} Bd7 $146 {[%emt 0:00:13]} ({Predecessor:} 11... O-O 12. Qxb5 Ba6 13. Qa4 Nd5 14. O-O Qb6 15. Nc3 Nc6 16. e4 Nxc3 17. bxc3 Bb5 {½-½ (37) Andreikin,D (2729)-Sadhwani,R (2628) Chess.com INT 2022}) 12. Nc3 $2 {[%emt 0:26:08]} (12. Qxg7 Rg8 13. Qh6 Bc6 $11) (12. Ne5 $16 h6 13. Qxg7) 12... h6 $17 {[%emt 0:11:40]} 13. Qc5 {[%emt 0:05:28] Black must now prevent Ne5.} (13. Qxg7 $2 Rh7 14. Qxh7 Nxh7 $19) 13... Na6 $1 $36 {[%emt 0:01:38][%mdl 2048] Black is really pushing.} 14. Qd6 {[%emt 0:04:45] aiming for Ne5.} Qc7 {[%emt 0:02:45]} 15. Qe5 {[%emt 0:02:32]} ({Much weaker is} 15. Qxc7 Nxc7 16. Ne5 Ra6 $15) 15... O-O {[%emt 0:11:51]} 16. Nxb5 {[%emt 0:12:58]} (16. Nd2 $142) 16... Bxb5 {[%emt 0:09:48]} 17. Qxb5 {[%emt 0:00:17] [#]} c3 $1 {[%emt 0:00:02]} 18. Qb3 {[%emt 0:00:06]} Ne4 {[%emt 0:07:18]} 19. bxc3 {[%emt 0:04:33]} Rfb8 $2 {[%emt 0:01:07]} (19... Rab8 $17 20. Qa3 Nxc3) 20. Qa3 $14 {[%emt 0:01:02]} Nb4 $2 {[%emt 0:01:28][%mdl 8192]} 21. cxb4 $18 {[%emt 0:09:23]} axb4 {[%emt 0:00:01]} 22. Qxa8 {[%emt 0:00:57]} Rxa8 {[%emt 0:02:47]} 23. Rxa8+ {[%emt 0:00:05]} Kh7 {[%emt 0:00:02][%cal Rc7c1]} 24. O-O {[%emt 0:02:10]} b3 {[%emt 0:00:04] [#]} 25. Ng5+ $1 {[%emt 0:15:50]} Nxg5 {[%emt 0:48:01]} 26. h4 {[%emt 0:06:44]} f5 {[%emt 0:00:00]} 27. hxg5 {[%emt 0:00:00]} b2 {[%emt 0:00:00]} 28. Ra6 {[%emt 0:00:00] Against Qb6} (28. d5 $18) 28... hxg5 $2 {[%emt 0:00:00] [#]} (28... Qb8 $1 $11 {and Black stays safe.}) 29. Rxe6 $2 {[%emt 0:00:46]} (29. Bc6 $1 $18) 29... Qb8 $1 $11 {[%emt 0:00:00] The position is equal.} 30. Rb1 {[%emt 0:00:40]} Qa7 {[%emt 0:00:00]} 31. Rf1 {[%emt 0:00:33][%cal Og3g4] Strongly threatening g4!} Qb8 $1 {[%emt 0:00:00]} 32. Rb1 {[%emt 0:00:27]} Qa7 {[%emt 0:00:00]} 33. Rf1 {[%emt 0:00:32] Weighted Error Value: White=0.41/Black=0.41} 1/2-1/2

[Event "2nd Doppelbauer Kiel GM 2022"]
[Site "Kiel"]
[Date "2022.07.03"]
[Round "6.2"]
[White "Ernst, Sipke"]
[Black "Farokhi, Keyvan"]
[Result "0-1"]
[ECO "D85"]
[WhiteElo "2547"]
[BlackElo "2360"]
[Annotator "TA"]
[PlyCount "92"]
[EventDate "2022.06.30"]
[EventType "tourn"]
[EventCountry "GER"]
[SourceTitle "playchess.com"]
[Source "ChessBase"]
[SourceQuality "1"]
[TimeControl "40/5400+30:1800+30"]

{[%evp 15,92,15,19,0,22,0,0,0,7,-15,0,-7,-18,-8,0,0,18,33,20,27,57,8,9,0,15,18,22,0,0,0,4,8,6,-171,-153,-277,-272,-264,-254,-266,0,0,0,-163,-163,-163,-163,-163,-141,-141,-141,-163,-158,-158,-158,-158,-158,-350,-350,-386,-306,-1744,-1724,-1872,-1845,-1262,-1113,-29974,-29976,-29976,-29977,-29978,-29978,-29977,-29978,-29980,-29981,-29971,-29972]} 1. d4 {[%emt 0:00:03]} Nf6 {[%emt 0:00:06]} 2. c4 {[%emt 0:00:04]} g6 {[%emt 0:00:06]} 3. Nc3 {[%emt 0:00:03]} d5 {[%emt 0:00:04]} 4. cxd5 {[%emt 0:00:03]} Nxd5 {[%emt 0:00:05]} 5. e4 {[%emt 0:00:02]} Nxc3 {[%emt 0:00:09]} 6. bxc3 {[%emt 0:00:01]} Bg7 {[%emt 0:00:10]} 7. Nf3 {[%emt 0:00:15] is more profitable than 7.Bc4 at the moment.} c5 {[%emt 0:00:07]} 8. Be3 {[%emt 0:00:02]} Qa5 {[%emt 0:00:06]} 9. Bd2 {[%emt 0:02:49] D85: Exchange Grünfeld: Unusual White 7th moves and lines with 7 Nf3.} O-O {[%emt 0:06:10]} 10. Be2 {[%emt 0:00:03]} Bg4 {[%emt 0:05:14]} 11. O-O {[%emt 0:00:11] The position is equal.} Rd8 {[%emt 0:03:12]} 12. d5 {[%emt 0:00:04]} Bxc3 {[%emt 0:13:20]} 13. Bxc3 {[%emt 0:00:04]} Qxc3 {[%emt 0:00:06]} 14. Rc1 {[%emt 0:00:03]} Qa5 {[%emt 0:00:35]} 15. Ng5 {[%emt 0:00:04] [#]} h6 $146 {[%emt 0:07:16] [#] And now ...Bxe2 would win.} ({Predecessor:} 15... Bxe2 16. Qxe2 h6 17. Nf3 Nd7 18. e5 Nf8 19. Rfd1 Rac8 20. Rc4 b5 21. Rh4 c4 {1-0 (36) Girya,O (2406)-Khotenashvili,B (2490) Gaziantep 2012}) 16. Bxg4 {[%emt 0:23:37]} hxg5 {[%emt 0:00:07]} 17. Rb1 {[%emt 0:08:18]} Nc6 {[%emt 0:09:00]} 18. Rxb7 {[%emt 0:07:45]} (18. Qc1 $1 $14 {might be stronger.} Ne5 19. Qxg5 Nxg4 20. Qxg4) 18... Qa6 $11 {[%emt 0:00:30]} 19. Rb2 {[%emt 0:20:55]} Nd4 {[%emt 0:03:37]} 20. Qc1 {[%emt 0:01:48]} Rab8 {[%emt 0:02:18]} 21. Rxb8 {[%emt 0:03:56]} (21. Rd2 $5 {[%cal Rc1c5]}) 21... Rxb8 {[%emt 0:00:46]} 22. h3 {[%emt 0:07:36]} Qd3 {[%emt 0:09:07]} 23. e5 {[%emt 0:07:49]} c4 {[%emt 0:04:55][%cal Bc5c4,Bc4c3,Bc3c2][%mdl 32]} 24. Re1 $2 {[%emt 0:07:31]} (24. Rd1 $11 Qe4 25. d6 Qxg4 26. hxg4 Ne2+ 27. Kh2 Nxc1 28. Rxc1) 24... c3 $19 {[%emt 0:02:24]} 25. d6 {[%emt 0:00:04]} (25. e6 $17 f5 26. Qxg5 fxg4 27. Qxe7) 25... exd6 {[%emt 0:05:36]} 26. exd6 {[%emt 0:01:05] [#]} c2 $1 {[%emt 0:00:41] White must now prevent ...Rb1.} 27. d7 {[%emt 0:00:14]} Ne6 $2 {[%emt 0:01:07]} ({And not} 27... Qb5 28. a4 Qc6 29. Qxg5 $15) (27... Kg7 $19 {Strongly threatening ...Nc6.} 28. Kh2 (28. Qxg5 $2 Nc6 $19) 28... Rb1 29. Qxg5 (29. d8=Q $2 Nf3+ 30. Bxf3 Qxd8 $19) 29... Nc6) 28. Bxe6 $11 {[%emt 0:03:15]} Rb1 {[%emt 0:02:25]} 29. Bb3 {[%emt 0:04:04] Black keeps a firm grip on the game.} (29. Qxc2 $11 Rxe1+ 30. Kh2 Qxc2 31. d8=Q+ Kg7 32. Qd4+ Kh7 33. Qxa7) 29... Rxc1 $19 {[%emt 0:03:35] The board is on fire.} 30. Rxc1 {[%emt 0:00:05]} Qxd7 {[%emt 0:00:18] Threatens to win with ...a5.} 31. Rxc2 {[%emt 0:00:05][%mdl 4096] Endgame KQ-KRB} Kg7 {[%emt 0:02:16]} 32. Rc4 {[%emt 0:00:43]} a5 {[%emt 0:02:19]} 33. Ra4 {[%emt 0:01:57]} Qd2 {[%emt 0:00:27] aiming for ...Qe1+.} 34. g3 {[%emt 0:00:07]} f5 {[%emt 0:01:40]} 35. Kg2 {[%emt 0:00:18]} f4 {[%emt 0:02:25]} 36. gxf4 $2 {[%emt 0:00:22]} (36. h4 $17) 36... gxf4 {[%emt 0:00:06][%cal Bg5f4,Bf4f3][%mdl 32]} 37. Rc4 {[%emt 0:01:43]} Qd5+ {[%emt 0:01:10]} 38. Kg1 $2 {[%emt 0:00:26]} (38. Kf1 Qg5 39. Ke2) 38... Qg5+ {[%emt 0:01:05]} 39. Kh1 {[%emt 0:00:43]} f3 {[%emt 0:00:16][%csl Gf3][%cal Rg5g2]} 40. Rg4 {[%emt 0:00:01] Prevents Qg2+.} Qd2 {[%emt 0:01:24]} 41. a4 {[%emt 0:05:33]} Qe1+ {[%emt 0:01:37] Black mates.} 42. Rg1 {[%emt 0:00:02]} Qxf2 {[%emt 0:00:07]} 43. Be6 {[%emt 0:00:34]} Qe3 {[%emt 0:02:13]} 44. Bg4 {[%emt 0:00:38]} Qd3 {[%emt 0:00:34]} 45. Ra1 {[%emt 0:00:32]} f2 {[%emt 0:00:19]} 46. Kg2 {[%emt 0:00:03]} Qe4+ {[%emt 0:00:06] Weighted Error Value: White=0.63/Black=0.09 (flawless)} 0-1

[Event "2nd Doppelbauer Kiel GM 2022"]
[Site "Kiel"]
[Date "2022.07.03"]
[Round "6.3"]
[White "Bogner, Sebastian"]
[Black "Teclaf, Pawel"]
[Result "1/2-1/2"]
[ECO "D22"]
[WhiteElo "2553"]
[BlackElo "2537"]
[Annotator "TA"]
[PlyCount "34"]
[EventDate "2022.06.30"]
[EventType "tourn"]
[EventCountry "GER"]
[SourceTitle "playchess.com"]
[Source "ChessBase"]
[SourceQuality "1"]
[TimeControl "40/5400+30:1800+30"]

{[%evp 10,34,43,45,54,40,48,36,36,40,49,51,33,35,39,10,22,22,22,15,8,8,8,18,16,11,-8]} 1. d4 {[%emt 0:00:12]} d5 {[%emt 0:01:36]} 2. c4 {[%emt 0:00:19]} dxc4 {[%emt 0:00:05]} 3. Nf3 {[%emt 0:00:08]} a6 {[%emt 0:00:11]} 4. e3 {[%emt 0:00:22]} Bg4 {[%emt 0:00:07]} 5. Bxc4 {[%emt 0:00:22]} e6 {[%emt 0:00:06]} 6. O-O {[%emt 0:03:13]} Nc6 {[%emt 0:00:33] D22: Queen's Gambit Accepted: 3 Nf3 a6 4 e3.} 7. h3 {[%emt 0:01:25]} Bh5 {[%emt 0:00:14]} 8. Be2 {[%emt 0:00:14]} Nf6 {[%emt 0:02:10] White is slightly better.} 9. a3 {[%emt 0:10:01]} Bd6 {[%emt 0:04:13]} 10. b4 {[%emt 0:00:31]} O-O {[%emt 0:10:48]} 11. Bb2 {[%emt 0:01:31]} Qe8 {[%emt 0:06:42] [#]} 12. Ne5 $146 {[%emt 0:15:09]} ({Predecessor:} 12. Re1 Rd8 13. Nbd2 e5 14. Nxe5 Bxe2 15. Qxe2 Nxe5 16. dxe5 Bxe5 17. Bxe5 Qxe5 18. Nf3 {½-½ (18) Punnett,A (2155)-Djabri,Z (2080) West Bromwich 2006}) 12... Bxe2 {[%emt 0:07:57] The position is equal.} 13. Qxe2 {[%emt 0:00:10]} Nd5 {[%emt 0:13:48]} 14. Rc1 {[%emt 0:08:37]} Nxe5 {[%emt 0:15:50]} 15. dxe5 {[%emt 0:02:11]} Be7 {[%emt 0:00:04]} 16. Nd2 {[%emt 0:10:49]} a5 {[%emt 0:03:04]} 17. bxa5 {[%emt 0:08:33]} Rxa5 {[%emt 0:00:49] Weighted Error Value: White=0.04 (flawless) /Black=0.00 (flawless)} 1/2-1/2

[Event "2nd Doppelbauer Kiel GM 2022"]
[Site "Kiel"]
[Date "2022.07.03"]
[Round "6.4"]
[White "Horvath, Dominik"]
[Black "Hacker, Jonas"]
[Result "1/2-1/2"]
[ECO "B47"]
[WhiteElo "2482"]
[BlackElo "2396"]
[Annotator "TA"]
[PlyCount "118"]
[EventDate "2022.06.30"]
[EventType "tourn"]
[EventCountry "GER"]
[SourceTitle "playchess.com"]
[Source "ChessBase"]
[SourceQuality "1"]
[TimeControl "40/5400+30:1800+30"]

{[%evp 9,118,12,45,25,22,13,20,9,20,2,15,17,28,6,28,0,0,0,1,-13,-16,-25,0,-103,-104,-93,-106,-93,0,0,0,0,0,-93,-85,-89,-82,-76,-76,-124,-117,-118,-106,-137,-130,-164,-164,-168,-104,-253,-247,-250,-245,-245,-246,-254,-47,-51,-66,-94,-24,-24,-24,-24,-24,-24,-20,-24,-24,-23,-11,-12,-20,-12,0,0,0,0,112,0,0,0,0,0,0,0,0,0,0,0,0,0,0,0,0,0,0,0,0,0,0,0,0,0,0,0,0,0,0,0,29986]} 1. e4 {[%emt 0:00:32]} c5 {[%emt 0:00:14]} 2. Nf3 {[%emt 0:00:03]} e6 {[%emt 0:00:07]} 3. d4 {[%emt 0:00:04]} cxd4 {[%emt 0:00:06]} 4. Nxd4 {[%emt 0:00:03]} Nc6 {[%emt 0:00:54]} 5. Nc3 {[%emt 0:00:03]} Qc7 {[%emt 0:00:09]} 6. Ncb5 {[%emt 0:00:05] B47: Sicilian: Taimanov: 5 Nc3 Qc7 6 f4, 6 g3 and 6 Be2.} Qb8 {[%emt 0:04:55]} 7. Bd3 {[%emt 0:00:08]} a6 {[%emt 0:04:22]} 8. Nxc6 {[%emt 0:00:05]} bxc6 {[%emt 0:01:48]} 9. Nd4 {[%emt 0:00:08]} Nf6 {[%emt 0:06:22]} 10. O-O {[%emt 0:00:07] [#]} Bb7 $146 {[%emt 0:04:17]} ({Predecessor:} 10... c5 11. Nf3 c4 12. Bxc4 Nxe4 13. Qd4 Bb7 14. Re1 Nf6 15. Ne5 Qc7 16. Bd3 Bd6 {½-½ (40) Bolhari,O-Dedina,M (2348) ICCF email 2017}) 11. Re1 {[%emt 0:03:56]} c5 {[%emt 0:06:08]} 12. Nf3 {[%emt 0:00:52]} c4 $1 {[%emt 0:03:59]} 13. Bxc4 {[%emt 0:00:17] With the idea e5.} Bxe4 {[%emt 0:02:05]} 14. Bg5 {[%emt 0:02:54]} (14. Bd3 $5 {[%cal Rd3e4]} Bb7 15. Be3 $11) 14... Qb7 {[%emt 0:01:49]} 15. Ne5 {[%emt 0:12:52]} d6 {[%emt 0:08:36]} 16. Nxf7 {[%emt 0:56:17]} Kxf7 $17 {[%emt 0:01:44]} 17. Bxf6 {[%emt 0:00:12]} gxf6 {[%emt 0:05:56]} 18. Qg4 {[%emt 0:03:07]} f5 {[%emt 0:08:33]} ({Black should play} 18... Bd5 $1 $17 {Hoping for ...h5.} 19. Qh5+ Kg8 20. Qg4+ Qg7 21. Qxe6+ Bxe6 22. Bxe6+ Qf7 $1) 19. Qh5+ $11 {[%emt 0:00:04]} Ke7 {[%emt 0:01:17]} 20. Qg5+ {[%emt 0:03:38]} Kf7 {[%emt 0:10:11][%cal Be7f7,Bf7e8,Be8d8][%mdl 32] Threatens to win with ...d5.} 21. f3 {[%emt 0:01:54]} (21. Qh5+ $11 Ke7 22. Qh4+ Kf7 23. Qh5+) 21... Bd5 $17 {[%emt 0:05:28]} 22. Rxe6 {[%emt 0:00:09][%mdl 64] Remove Defender, Decoy} Bxe6 {[%emt 0:06:28]} ({Resist} 22... Kxe6 23. Re1+ Kd7 24. Qxf5+ Kd8 25. Bxd5 Qa7+ 26. Kf1 $16) 23. Qxf5+ {[%emt 0:00:03]} Ke8 $1 {[%emt 0:00:45]} 24. Re1 {[%emt 0:01:08] [#]} (24. Qxe6+ $142 Qe7 25. Qd5) 24... Be7 $1 {[%emt 0:01:26]} 25. Qxe6 {[%emt 0:00:36]} Kd8 {[%emt 0:02:47]} 26. Bd5 {[%emt 0:04:45]} Qb6+ {[%emt 0:00:35]} 27. Kh1 {[%emt 0:00:19]} Ra7 {[%emt 0:00:21]} 28. b3 {[%emt 0:02:03]} h5 {[%emt 0:01:06]} (28... Qd4 $19 29. c4 Rc7) 29. h3 {[%emt 0:02:03]} (29. Rd1 $17) 29... Bh4 $19 {[%emt 0:04:07]} 30. Rd1 {[%emt 0:02:54][%cal Od5c6]} Re7 $1 {[%emt 0:03:11]} 31. Qg6 {[%emt 0:00:02]} Kc7 $1 {[%emt 0:00:55]} 32. g3 {[%emt 0:01:32] [#]} Qf2 $2 {[%emt 0:03:32]} (32... Rhe8 $1 $19 {( -> ...Re1+)} 33. Be4 (33. gxh4 $2 Re1+ 34. Rxe1 Rxe1+ 35. Kh2 Re2+ 36. Kh1 Qf2 $19) 33... d5 34. Qxb6+ Kxb6 35. Rxd5 Bxg3 36. Rxh5 Rg7 37. Rh6+ Ka7) 33. gxh4 $15 {[%emt 0:00:12]} Qxh4 {[%emt 0:00:54]} 34. Qg2 {[%emt 0:03:02]} Re1+ {[%emt 0:01:19]} (34... Rhh7 $17 {And now ...Rhg7 would win.} 35. Be4 Rhg7) 35. Rxe1 $11 {[%emt 0:00:04]} Qxe1+ {[%emt 0:00:03][%mdl 4096] Endgame KQR-KQB} 36. Qg1 {[%emt 0:00:09]} Re8 {[%emt 0:00:58] White must now prevent ...Re2.} 37. Be4 {[%emt 0:00:02] The board is on fire.} Qxg1+ {[%emt 0:00:16]} 38. Kxg1 {[%emt 0:00:03] KR-KB} h4 {[%emt 0:00:24]} 39. b4 {[%emt 0:02:19]} Re5 {[%emt 0:01:12]} 40. c4 {[%emt 0:00:10]} a5 {[%emt 0:00:31]} 41. a3 {[%emt 0:30:11][%cal Ba2a3,Ba3b4][%mdl 32]} axb4 {[%emt 0:02:39]} 42. axb4 {[%emt 0:00:00]} Re8 {[%emt 0:03:41]} 43. Kf2 {[%emt 0:00:00]} Kd7 {[%emt 0:05:46] [#]} (43... Rg8 $11 {keeps the balance.}) 44. Ke3 {[%emt 0:00:00]} (44. b5 $1 $16 {aiming for Bc6+.} Rg8 45. f4) 44... d5 {[%emt 0:03:33] The position is equal.} 45. cxd5 {[%emt 0:00:00]} Rb8 {[%emt 0:00:04]} 46. Kf4 {[%emt 0:00:00]} Rxb4 {[%emt 0:00:57]} 47. Kg5 {[%emt 0:00:00]} Kd6 {[%emt 0:02:29]} 48. Kxh4 {[%emt 0:00:00]} Ke5 {[%emt 0:00:10]} 49. Kg5 {[%emt 0:00:00]} Rb2 {[%emt 0:00:23]} 50. h4 {[%emt 0:00:00] Strongly threatening Bf5.} Rg2+ {[%emt 0:00:39]} 51. Kh6 {[%emt 0:00:00]} Kf6 {[%emt 0:00:39]} 52. h5 {[%emt 0:00:00]} Rg8 {[%emt 0:01:20]} 53. Kh7 {[%emt 0:00:00]} Rd8 {[%emt 0:02:52]} 54. h6 {[%emt 0:00:00]} Rc8 {[%emt 0:02:24]} 55. f4 {[%emt 0:03:13]} Rc4 {[%emt 0:01:43]} 56. Bg2 {[%emt 0:00:07]} Rxf4 {[%emt 0:01:56]} 57. Bh3 {[%emt 0:00:23]} Rb4 {[%emt 0:00:56]} 58. d6 {[%emt 0:00:36]} Rb8 {[%emt 0:01:49]} 59. d7 {[%emt 0:00:09]} Ke5 $2 {[%emt 0:06:10][%mdl 40960] Never resign too early!  Weighted Error Value: White=0.17 (very precise) /Black=0.19 (very precise) . An unexpected result.} (59... Rd8 $11) 1/2-1/2